fUST/lending_fUST_20240912
["ID","MTS","AMOUNT","RATE_DAILY","PERIOD"]
[337799168,1726123856700,-909.14,0.00020547,2]
[337799169,1726123856711,-637.82,0.00020547,2]
[337799170,1726123856722,-1548.21,0.00020547,2]
[337799171,1726123856734,-960.5,0.00020547,2]
[337799172,1726123856744,-608.64,0.00020547,2]
[337799173,1726123856755,-688.31,0.00020547,2]
[337799174,1726123856765,-310.39585546,0.00020547,2]
[337799175,1726123856774,-500.0,0.00020547,2]
[337799176,1726123856784,-843.58,0.00020547,2]
[337799177,1726123856794,-500.0,0.00020547,2]
[337799178,1726123856803,-387.76848858,0.00020547,2]
[337799179,1726123856813,-500.0,0.00020547,2]
[337799180,1726123856822,-500.0,0.00020547,2]
[337799181,1726123856834,-506.79,0.00020547,2]
[337799182,1726123856844,-501.38403511,0.00020547,2]
[337799183,1726123856853,-500.0,0.00020547,2]
[337799184,1726123856863,-500.0,0.00020547,2]
[337799185,1726123856872,-705.14,0.00020547,2]
[337799186,1726123856882,-761.85,0.00020547,2]
[337799187,1726123856891,-844.39,0.00020547,2]
[337799188,1726123856900,-1153.8,0.00020547,2]
[337799189,1726123856909,-1280.53,0.00020547,2]
[337799190,1726123856918,-563.5,0.00020547,2]
[337799191,1726123856928,-651.504644,0.00020547,2]
[337799192,1726123856937,-651.504644,0.00020547,2]
[337799193,1726123856947,-1201.71,0.00020547,2]
[337799194,1726123856956,-509.77,0.00020547,2]
[337799195,1726123856967,-500.0,0.00020547,2]
[337799196,1726123856976,-659.94,0.00020547,2]
[337799197,1726123856987,-597.39747061,0.00020547,2]
[337799198,1726123857003,-500.0,0.00020547,2]
[337799199,1726123857012,-151.0,0.00020547,2]
[337799200,1726123857023,-500.0,0.00020547,2]
[337799201,1726123857036,-398.03889572,0.00020547,2]
[337799202,1726123857047,-563.24,0.00020547,2]
[337799203,1726123857058,-1009.51,0.00020547,2]
[337799204,1726123857069,-1316.2,0.00020547,2]
[337799205,1726123857082,-151.0,0.00020547,2]
[337799206,1726123857095,-1002.22,0.00020547,2]
[337799207,1726123857105,-1498.5,0.00020547,2]
[337799208,1726123857116,-500.0,0.00020547,2]
[337799209,1726123857126,-694.31,0.00020547,2]
[337799210,1726123857135,-1214.16,0.00020547,2]
[337799211,1726123857145,-557.62,0.00020547,2]
[337799212,1726123857155,-540.42,0.00020547,2]
[337799213,1726123857166,-151.0,0.00020547,2]
[337799214,1726123857175,-1797.38,0.00020547,2]
[337799215,1726123857185,-500.0,0.00020547,2]
[337799216,1726123857194,-773.65,0.00020547,2]
[337799217,1726123857203,-1331.18,0.00020547,2]
[337799218,1726123857213,-1255.34,0.00020547,2]
[337799219,1726123857223,-531.79,0.00020547,2]
[337799220,1726123857234,-181.256569,0.00020547,2]
[337799221,1726123857245,-181.256569,0.00020547,2]
[337799222,1726123857257,-636.83,0.00020547,2]
[337799223,1726123857267,-500.0,0.00020547,2]
[337799224,1726123857276,-865.46,0.00020547,2]
[337799225,1726123857286,-725.62,0.00020547,2]
[337799226,1726123857295,-500.0,0.00020547,2]
[337799227,1726123857306,-605.23,0.00020547,2]
[337799228,1726123857318,-500.0,0.00020547,2]
[337799229,1726123857330,-988.25,0.00020547,2]
[337799230,1726123857341,-151.0,0.00020547,2]
[337799231,1726123857352,-500.0,0.00020547,2]
[337799232,1726123857363,-375.756997,0.00020547,2]
[337799233,1726123857372,-375.756997,0.00020547,2]
[337799234,1726123857383,-818.89,0.00020547,2]
[337799235,1726123857395,-168.185881,0.00020547,2]
[337799236,1726123857406,-284.177034,0.00020547,2]
[337799237,1726123857418,-1126.63,0.00020547,2]
[337799238,1726123857429,-500.0,0.00020547,2]
[337799239,1726123857439,-977.81,0.00020547,2]
[337799240,1726123857450,-500.0,0.00020547,2]
[337799241,1726123857461,-500.0,0.00020547,2]
[337799242,1726123857472,-500.0,0.00020547,2]
[337799243,1726123857483,-1537.80606316,0.00020547,2]
[337799244,1726123857649,-38.19393684,0.00020547,2]
[337799245,1726123857660,-563.69,0.00020547,2]
[337799246,1726123857671,-500.0,0.00020547,2]
[337799247,1726123857681,-752.1,0.00020547,2]
[337799248,1726123857691,-500.0,0.00020547,2]
[337799249,1726123857701,-151.0,0.00020547,2]
[337799250,1726123857711,-500.0,0.00020547,2]
[337799251,1726123857721,-500.0,0.00020547,2]
[337799252,1726123857731,-500.0,0.00020547,2]
[337799253,1726123857741,-500.0,0.00020547,2]
[337799254,1726123857909,-895.59,0.00020547,2]
[337799255,1726123857919,-500.0,0.00020547,2]
[337799256,1726123857928,-691.07,0.00020547,2]
[337799257,1726123857938,-786.8,0.00020547,2]
[337799258,1726123857947,-975.76,0.00020547,2]
[337799259,1726123857957,-500.0,0.00020547,2]
[337799260,1726123857966,-806.09,0.00020547,2]
[337799261,1726123857975,-423.09098,0.00020547,2]
[337799262,1726123857984,-729.84,0.00020547,2]
[337799263,1726123857996,-770.21,0.00020547,2]
[337799264,1726123858006,-500.0,0.00020547,2]
[337799265,1726123858015,-5028.60675996,0.00020547,2]
[337799266,1726123858102,-979.68,0.0001863,2]
[337799267,1726123858112,-3646.33324004,0.00020547,2]
[337799268,1726123858122,-848.3,0.00020547,2]
[337799269,1726123858131,-423.09098,0.00020547,2]
[337799270,1726123858141,-500.0,0.00020547,2]
[337799271,1726123858150,-866.1,0.00020547,2]
[337799272,1726123858160,-689.98,0.00020547,2]
[337799273,1726123858169,-631.72,0.00020547,2]
[337799274,1726123858179,-276.254388,0.00020547,2]
[337799275,1726123858188,-151.0,0.00020547,2]
[337799276,1726123858197,-500.0,0.00020547,2]
[337799277,1726123858207,-582.27,0.00020547,2]
[337799278,1726123858216,-560.54,0.00020547,2]
[337799279,1726123858225,-276.254388,0.00020547,2]
[337799280,1726123858236,-500.0,0.00020547,2]
[337799281,1726123858246,-1022.59,0.00020547,2]
[337799282,1726123858255,-3630.24813318,0.00020547,2]
[337799284,1726124014192,250.0,0.00015682,2]
[337799285,1726124062906,581.188229,0.00015638,2]
[337799286,1726124123335,306.596125,0.00015388,2]
[337799287,1726124123571,306.596125,0.00015392,2]
[337799288,1726124123771,306.596125,0.00015396,2]
[337799289,1726124124018,306.596125,0.000154,2]
[337799290,1726124124241,306.596125,0.00015404,2]
[337799291,1726124124447,306.596125,0.00015408,2]
[337799292,1726124124660,306.596125,0.00015412,2]
[337799293,1726124124960,306.596125,0.00015416,2]
[337799294,1726124125104,306.596125,0.0001542,2]
[337799295,1726124125314,306.596125,0.00015424,2]
[337799296,1726124125524,306.596125,0.00015428,2]
[337799297,1726124125738,306.596125,0.00015432,2]
[337799298,1726124125942,306.596125,0.00015436,2]
[337799299,1726124126201,306.596125,0.0001544,2]
[337799300,1726124126416,306.596125,0.00015444,2]
[337799301,1726124126652,1204.1506192,0.00015511,2]
[337799302,1726124126839,306.596125,0.00015448,2]
[337799303,1726124127045,306.596125,0.00015452,2]
[337799304,1726124127279,306.596125,0.00015456,2]
[337799305,1726124127495,306.596125,0.0001546,2]
[337799306,1726124127695,306.596125,0.00015465,2]
[337799307,1726124181292,3000.0,0.00015412,2]
[337799308,1726124289511,500.0,0.00015412,2]
[337799309,1726124311200,200.0,0.0001546,2]
[337799310,1726124327395,200.0,0.000155,2]
[337799311,1726124331332,250.0,0.000155,2]
[337799312,1726124331547,250.0,0.00015542,2]
[337799313,1726124331762,250.0,0.00015585,2]
[337799314,1726124332001,250.0,0.00015627,2]
[337799315,1726124332214,250.0,0.0001567,2]
[337799316,1726124332429,250.0,0.00015713,2]
[337799317,1726124332634,250.0,0.00015755,2]
[337799318,1726124332863,250.0,0.00015798,2]
[337799319,1726124333082,250.0,0.0001584,2]
[337799320,1726124333317,250.0,0.00015883,2]
[337799321,1726124333529,250.0,0.00015925,2]
[337799322,1726124333752,250.0,0.00015968,2]
[337799324,1726124354725,200.0,0.00015925,2]
[337799325,1726124368825,200.0,0.00016,2]
[337799326,1726124403758,200.0,0.00016,2]
[337799327,1726124481651,24900.0,0.0001527,2]
[337799329,1726124587338,290.594115,0.00015264,2]
[337799330,1726124602393,250.0,0.00015264,2]
[337799333,1726124640105,150.0,0.00015264,2]
[337799334,1726124706590,3000.0,0.00015275,2]
[337799335,1726124754130,-250.0,0.0001601,2]
[337799336,1726124754155,-250.0,0.00016053,2]
[337799337,1726124754182,-250.0,0.00016095,2]
[337799338,1726124754207,-250.0,0.00016138,2]
[337799339,1726124754231,-157.84020401,0.0001618,2]
[337799340,1726124841101,-92.15979599,0.0001618,2]
[337799341,1726124841124,-250.0,0.00016223,2]
[337799342,1726124841148,-250.0,0.00016265,2]
[337799343,1726124841170,-199.40156201,0.000163,2]
[337799344,1726124841193,-199.401562,0.000163,2]
[337799345,1726124841217,-250.0,0.00016308,2]
[337799346,1726124841240,-863.74790801,0.00016318,2]
[337799347,1726124849104,-269.10297513,0.00016318,2]
[337799348,1726124849129,-1132.85088313,0.00016323,2]
[337799349,1726124849153,-1132.85088313,0.00016327,2]
[337799350,1726124849175,-1537.51094775,0.00016337,2]
[337799351,1726124849199,-300.0,0.00016417,2]
[337799352,1726124849223,-300.0,0.00016417,2]
[337799353,1726124849249,-24727.2279124,0.00016418,2]
[337799354,1726124849439,-500.0,0.00016427,2]
[337799355,1726124849466,-500.0,0.00016427,2]
[337799356,1726124849492,-167.7768559,0.00016427,2]
[337799357,1726124849518,-500.0,0.00016427,2]
[337799358,1726124849544,-500.0,0.00016427,2]
[337799359,1726124849569,-259.39190151,0.00016427,2]
[337799360,1726124849596,-500.0,0.00016427,2]
[337799361,1726124849621,-500.0,0.00016427,2]
[337799362,1726124849645,-500.0,0.00016427,2]
[337799363,1726124849671,-500.0,0.00016427,2]
[337799364,1726124849698,-500.0,0.00016427,2]
[337799365,1726124849723,-616.86032287,0.00016427,2]
[337799366,1726124849746,-500.0,0.00016427,2]
[337799367,1726124849770,-500.0,0.00016427,2]
[337799368,1726124849798,-500.0,0.00016427,2]
[337799369,1726124849824,-500.0,0.00016427,2]
[337799370,1726124849848,-500.0,0.00016427,2]
[337799371,1726124849875,-500.0,0.00016427,2]
[337799372,1726124849900,-500.0,0.00016427,2]
[337799373,1726124849925,-406.80616944,0.00016427,2]
[337799374,1726124849953,-500.0,0.00016427,2]
[337799375,1726124849980,-500.0,0.00016427,2]
[337799376,1726124850006,-500.0,0.00016427,2]
[337799377,1726124850034,-500.0,0.00016427,2]
[337799378,1726124850066,-500.0,0.00016427,2]
[337799379,1726124850091,-500.0,0.00016427,2]
[337799380,1726124850120,-500.0,0.00016427,2]
[337799381,1726124850148,-500.0,0.00016427,2]
[337799382,1726124850174,-500.0,0.00016427,2]
[337799383,1726124850200,-500.0,0.00016427,2]
[337799384,1726124850226,-500.0,0.00016427,2]
[337799385,1726124850252,-500.0,0.00016427,2]
[337799386,1726124850278,-500.0,0.00016427,2]
[337799387,1726124850305,-500.0,0.00016427,2]
[337799388,1726124850330,-500.0,0.00016427,2]
[337799389,1726124850355,-500.0,0.00016427,2]
[337799390,1726124850396,-500.0,0.00016427,2]
[337799391,1726124850429,-500.0,0.00016427,2]
[337799392,1726124850459,-629.13161569,0.00016427,2]
[337799393,1726124850486,-500.0,0.00016427,2]
[337799394,1726124850515,-500.0,0.00016427,2]
[337799395,1726124850543,-500.0,0.00016427,2]
[337799396,1726124850569,-500.0,0.00016427,2]
[337799397,1726124850599,-500.0,0.00016427,2]
[337799398,1726124850626,-500.0,0.00016427,2]
[337799399,1726124850654,-500.0,0.00016427,2]
[337799400,1726124850682,-500.0,0.00016427,2]
[337799401,1726124850708,-500.0,0.00016427,2]
[337799402,1726124850733,-500.0,0.00016427,2]
[337799403,1726124850759,-500.0,0.00016427,2]
[337799404,1726124850788,-500.0,0.00016427,2]
[337799405,1726124850816,-469.90351286,0.00016427,2]
[337799406,1726124850843,-500.0,0.00016427,2]
[337799407,1726124850871,-500.0,0.00016427,2]
[337799408,1726124850900,-500.0,0.00016427,2]
[337799409,1726124850929,-500.0,0.00016427,2]
[337799410,1726124850957,-500.0,0.00016427,2]
[337799411,1726124850985,-500.0,0.00016427,2]
[337799412,1726124851012,-500.0,0.00016427,2]
[337799413,1726124851042,-500.0,0.00016427,2]
[337799414,1726124851070,-500.0,0.00016427,2]
[337799415,1726124851099,-500.0,0.00016427,2]
[337799416,1726124851131,-500.0,0.00016427,2]
[337799417,1726124851160,-500.0,0.00016427,2]
[337799418,1726124851188,-500.0,0.00016427,2]
[337799419,1726124851215,-500.0,0.00016427,2]
[337799420,1726124851240,-500.0,0.00016427,2]
[337799421,1726124851266,-500.0,0.00016427,2]
[337799422,1726124851291,-500.0,0.00016427,2]
[337799423,1726124851316,-500.0,0.00016427,2]
[337799424,1726124851341,-500.0,0.00016427,2]
[337799425,1726124851366,-500.0,0.00016427,2]
[337799426,1726124851392,-500.0,0.00016427,2]
[337799427,1726124851420,-500.0,0.00016427,2]
[337799428,1726124851445,-300.0,0.00016427,2]
[337799429,1726124851471,-53731.20066776,0.00016428,2]
[337799431,1726124943654,350.0,0.00018,6]
[337799432,1726124951249,-5869.9044658,0.00016338,2]
[337799433,1726124951272,-300.0,0.00016426,2]
[337799434,1726124951295,-300.0,0.00016426,2]
[337799435,1726124951320,-500.0,0.00016427,2]
[337799436,1726124951342,-500.0,0.00016427,2]
[337799437,1726124951363,-345.44641286,0.00016427,2]
[337799438,1726124951387,-500.0,0.00016427,2]
[337799439,1726124951409,-213.32939115,0.00016427,2]
[337799440,1726124951431,-163.2696601,0.00016427,2]
[337799441,1726124951453,-500.0,0.00016427,2]
[337799442,1726124951475,-500.0,0.00016427,2]
[337799443,1726124951500,-500.0,0.00016427,2]
[337799444,1726124951523,-500.0,0.00016427,2]
[337799445,1726124951546,-500.0,0.00016427,2]
[337799446,1726124951568,-178.10573276,0.00016427,2]
[337799447,1726124951591,-500.0,0.00016427,2]
[337799448,1726124951613,-450.0,0.00016427,2]
[337799449,1726124951636,-165.0,0.00016427,2]
[337799450,1726124951657,-401.19034199,0.00016427,2]
[337799451,1726124951680,-68392.6136539,0.00016428,2]
[337799452,1726124951704,-21649.39374144,0.00016428,2]
[337799453,1726124965173,196.0,0.00015693,2]
[337799454,1726124965196,243.25965443,0.00015693,2]
[337799455,1726124965223,24460.74034557,0.00015693,2]
[337799456,1726124978771,164.91596043,0.0001539,2]
[337799457,1726124978795,85.08403957,0.0001539,2]
[337799458,1726124979024,126.20152377,0.00015433,2]
[337799459,1726124979051,123.79847623,0.00015433,2]
[337799460,1726124979262,250.0,0.00015475,2]
[337799461,1726124979470,250.0,0.00015517,2]
[337799462,1726124979693,250.0,0.00015559,2]
[337799463,1726124979953,250.0,0.00015602,2]
[337799464,1726124980356,250.0,0.00015644,2]
[337799465,1726124980767,250.0,0.00015686,2]
[337799466,1726124981000,250.0,0.00015728,2]
[337799467,1726124981346,250.0,0.0001577,2]
[337799468,1726124981768,250.0,0.00015813,2]
[337799469,1726124981999,250.0,0.00015855,2]
[337799470,1726124982531,250.0,0.00015897,2]
[337799471,1726124982689,250.0,0.00015939,2]
[337799472,1726124982777,250.0,0.00015982,2]
[337799504,1726125032357,-250.0,0.00016024,2]
[337799505,1726125032367,-250.0,0.00016066,2]
[337799506,1726125032377,-250.0,0.00016108,2]
[337799507,1726125032387,-250.0,0.0001615,2]
[337799508,1726125032397,-250.0,0.00016193,2]
[337799509,1726125032407,-1485.48858164,0.00016328,2]
[337799513,1726125032701,-299.25945273,0.00016328,2]
[337799514,1726125032714,-1905.36019977,0.00016328,2]
[337799515,1726125032732,-5646.6177674,0.00016328,2]
[337799516,1726125032743,-3783.80917607,0.00016328,2]
[337799517,1726125032756,-660.4714271,0.00016328,2]
[337799542,1726125038464,-2119.03510944,0.00016328,2]
[337799543,1726125038478,-21240.85178959,0.00016328,2]
[337799544,1726125038488,-168.28159229,0.00016338,2]
[337799545,1726125038498,-150.112233,0.000164,2]
[337799546,1726125038508,-300.0,0.00016426,2]
[337799547,1726125038518,-300.0,0.00016426,2]
[337799548,1726125038528,-500.0,0.00016427,2]
[337799549,1726125038538,-500.0,0.00016427,2]
[337799550,1726125038548,-500.0,0.00016427,2]
[337799551,1726125038557,-229.85160524,0.00016427,2]
[337799552,1726125038567,-500.0,0.00016427,2]
[337799553,1726125038578,-500.0,0.00016427,2]
[337799554,1726125038588,-500.0,0.00016427,2]
[337799555,1726125038599,-500.0,0.00016427,2]
[337799556,1726125038612,-161.70342701,0.00016427,2]
[337799557,1726125038622,-187.21579727,0.00016427,2]
[337799558,1726125038631,-572.9880458,0.00016427,2]
[337799559,1726125038642,-308.50432831,0.00016427,2]
[337799560,1726125038652,-162146.20199456,0.00016428,2]
[337799561,1726125038662,-500.0,0.00016438,2]
[337799562,1726125038672,-500.22999257,0.00016438,2]
[337799563,1726125038683,-500.0,0.00016438,2]
[337799564,1726125038694,-500.0,0.00016438,2]
[337799565,1726125038705,-448.36233362,0.00016438,2]
[337799566,1726125038714,-500.0,0.00016438,2]
[337799567,1726125038730,-500.0,0.00016438,2]
[337799568,1726125038740,-500.0,0.00016438,2]
[337799569,1726125038749,-500.0,0.00016438,2]
[337799570,1726125038759,-500.0,0.00016438,2]
[337799571,1726125038768,-500.0,0.00016438,2]
[337799572,1726125038779,-500.0,0.00016438,2]
[337799573,1726125038788,-500.0,0.00016438,2]
[337799574,1726125038798,-500.0,0.00016438,2]
[337799575,1726125038809,-500.0,0.00016438,2]
[337799576,1726125038819,-500.0,0.00016438,2]
[337799577,1726125038829,-500.0,0.00016438,2]
[337799578,1726125038838,-500.0,0.00016438,2]
[337799579,1726125038847,-500.0,0.00016438,2]
[337799580,1726125038858,-500.0,0.00016438,2]
[337799581,1726125038867,-500.0,0.00016438,2]
[337799582,1726125038877,-500.0,0.00016438,2]
[337799583,1726125038887,-500.0,0.00016438,2]
[337799584,1726125038897,-500.0,0.00016438,2]
[337799585,1726125038906,-511.3250602,0.00016438,2]
[337799586,1726125038916,-500.0,0.00016438,2]
[337799587,1726125038926,-500.0,0.00016438,2]
[337799588,1726125038936,-500.0,0.00016438,2]
[337799589,1726125038946,-500.0,0.00016438,2]
[337799590,1726125038956,-500.0,0.00016438,2]
[337799591,1726125038966,-633.27178563,0.00016438,2]
[337799592,1726125038976,-500.0,0.00016438,2]
[337799593,1726125038986,-500.0,0.00016438,2]
[337799594,1726125038996,-500.0,0.00016438,2]
[337799595,1726125039005,-500.69801187,0.00016438,2]
[337799596,1726125039015,-500.0,0.00016438,2]
[337799597,1726125039026,-500.0,0.00016438,2]
[337799598,1726125039035,-500.0,0.00016438,2]
[337799599,1726125039045,-503.88006137,0.00016438,2]
[337799600,1726125039055,-534.74106036,0.00016438,2]
[337799601,1726125039065,-500.0,0.00016438,2]
[337799602,1726125039075,-500.25105355,0.00016438,2]
[337799603,1726125039086,-500.0,0.00016438,2]
[337799604,1726125039096,-500.0,0.00016438,2]
[337799605,1726125039107,-500.0,0.00016438,2]
[337799606,1726125039117,-500.0,0.00016438,2]
[337799607,1726125039127,-512.1974134,0.00016438,2]
[337799608,1726125039137,-500.0,0.00016438,2]
[337799609,1726125039147,-500.0,0.00016438,2]
[337799610,1726125039157,-500.0,0.00016438,2]
[337799611,1726125039167,-500.0,0.00016438,2]
[337799612,1726125039178,-500.0,0.00016438,2]
[337799613,1726125039187,-500.0,0.00016438,2]
[337799614,1726125039197,-500.0,0.00016438,2]
[337799615,1726125039208,-500.0,0.00016438,2]
[337799616,1726125039218,-500.0,0.00016438,2]
[337799617,1726125039228,-500.0,0.00016438,2]
[337799618,1726125039238,-500.0,0.00016438,2]
[337799619,1726125039248,-631.84,0.00016438,2]
[337799620,1726125039257,-500.0,0.00016438,2]
[337799621,1726125039267,-500.0,0.00016438,2]
[337799622,1726125039277,-500.0,0.00016438,2]
[337799623,1726125039286,-500.0,0.00016438,2]
[337799624,1726125039296,-500.0,0.00016438,2]
[337799625,1726125039306,-488.75707851,0.00016438,2]
[337799626,1726125039316,-500.0,0.00016438,2]
[337799627,1726125039325,-500.0,0.00016438,2]
[337799628,1726125039336,-500.0,0.00016438,2]
[337799629,1726125039345,-500.0,0.00016438,2]
[337799630,1726125039357,-500.0,0.00016438,2]
[337799631,1726125039367,-500.0,0.00016438,2]
[337799632,1726125039377,-500.0,0.00016438,2]
[337799633,1726125039387,-500.0,0.00016438,2]
[337799634,1726125039399,-500.0,0.00016438,2]
[337799635,1726125039410,-1043.21,0.00016438,2]
[337799636,1726125039422,-500.0,0.00016438,2]
[337799637,1726125039434,-500.0,0.00016438,2]
[337799638,1726125039444,-500.0,0.00016438,2]
[337799639,1726125039454,-833.03,0.00016438,2]
[337799640,1726125039464,-500.0,0.00016438,2]
[337799641,1726125039474,-500.0,0.00016438,2]
[337799642,1726125039484,-504.8,0.00016438,2]
[337799643,1726125039495,-545.70206234,0.00016438,2]
[337799644,1726125039505,-500.0,0.00016438,2]
[337799645,1726125039515,-500.40507088,0.00016438,2]
[337799646,1726125039524,-611.15609238,0.00016438,2]
[337799647,1726125039534,-500.0,0.00016438,2]
[337799648,1726125039543,-500.0,0.00016438,2]
[337799649,1726125039554,-510.92223258,0.00016438,2]
[337799650,1726125039564,-852.96,0.00016438,2]
[337799651,1726125039573,-500.0,0.00016438,2]
[337799652,1726125039582,-500.0,0.00016438,2]
[337799653,1726125039592,-500.0,0.00016438,2]
[337799654,1726125039603,-500.0,0.00016438,2]
[337799655,1726125039614,-500.0,0.00016438,2]
[337799656,1726125039623,-500.0,0.00016438,2]
[337799657,1726125039632,-174.0,0.00016438,2]
[337799658,1726125039643,-500.0,0.00016438,2]
[337799659,1726125039652,-500.0,0.00016438,2]
[337799660,1726125039661,-500.0,0.00016438,2]
[337799661,1726125039671,-500.0,0.00016438,2]
[337799662,1726125039683,-500.0,0.00016438,2]
[337799663,1726125039693,-505.08406469,0.00016438,2]
[337799664,1726125039703,-500.0,0.00016438,2]
[337799665,1726125039712,-500.0,0.00016438,2]
[337799666,1726125039727,-500.0,0.00016438,2]
[337799667,1726125039739,-472.28217327,0.00016438,2]
[337799668,1726125039749,-500.0,0.00016438,2]
[337799669,1726125039759,-500.0,0.00016438,2]
[337799670,1726125039770,-500.0,0.00016438,2]
[337799671,1726125039781,-500.0,0.00016438,2]
[337799672,1726125039791,-500.0,0.00016438,2]
[337799673,1726125039801,-393.57278461,0.00016438,2]
[337799674,1726125039811,-500.0,0.00016438,2]
[337799675,1726125039820,-500.0,0.00016438,2]
[337799676,1726125039830,-500.0,0.00016438,2]
[337799677,1726125039839,-500.0,0.00016438,2]
[337799678,1726125039849,-500.0,0.00016438,2]
[337799680,1726125039858,-500.0,0.00016438,2]
[337799682,1726125039868,-287.96915818,0.00016438,2]
[337799684,1726125039878,-500.0,0.00016438,2]
[337799686,1726125039888,-500.0,0.00016438,2]
[337799687,1726125039898,-500.0,0.00016438,2]
[337799688,1726125039909,-500.0,0.00016438,2]
[337799689,1726125039918,-500.0,0.00016438,2]
[337799690,1726125039928,-500.0,0.00016438,2]
[337799691,1726125039938,-500.0,0.00016438,2]
[337799692,1726125039948,-500.0,0.00016438,2]
[337799693,1726125039958,-500.0,0.00016438,2]
[337799694,1726125039970,-500.0,0.00016438,2]
[337799695,1726125039980,-500.0,0.00016438,2]
[337799696,1726125039990,-500.0,0.00016438,2]
[337799697,1726125040000,-500.0,0.00016438,2]
[337799698,1726125040011,-500.0,0.00016438,2]
[337799699,1726125040021,-500.0,0.00016438,2]
[337799700,1726125040031,-500.0,0.00016438,2]
[337799701,1726125040041,-500.0,0.00016438,2]
[337799702,1726125040050,-500.0,0.00016438,2]
[337799703,1726125040060,-500.0,0.00016438,2]
[337799704,1726125040070,-500.0,0.00016438,2]
[337799705,1726125040081,-516.62882971,0.00016438,2]
[337799706,1726125040093,-500.0,0.00016438,2]
[337799707,1726125040105,-500.0,0.00016438,2]
[337799708,1726125040116,-500.0,0.00016438,2]
[337799709,1726125040128,-500.0,0.00016438,2]
[337799710,1726125040139,-500.0,0.00016438,2]
[337799711,1726125040149,-500.0,0.00016438,2]
[337799712,1726125040160,-500.0,0.00016438,2]
[337799713,1726125040171,-503.04756713,0.00016438,2]
[337799714,1726125040180,-500.0,0.00016438,2]
[337799715,1726125040192,-500.0,0.00016438,2]
[337799716,1726125040204,-500.0,0.00016438,2]
[337799717,1726125040216,-500.0,0.00016438,2]
[337799718,1726125040227,-500.0,0.00016438,2]
[337799719,1726125040238,-500.0,0.00016438,2]
[337799720,1726125040249,-500.0,0.00016438,2]
[337799721,1726125040259,-500.0,0.00016438,2]
[337799722,1726125040269,-500.0,0.00016438,2]
[337799723,1726125040280,-500.0,0.00016438,2]
[337799724,1726125040290,-518.56628907,0.00016438,2]
[337799725,1726125040301,-500.0,0.00016438,2]
[337799726,1726125040313,-500.0,0.00016438,2]
[337799727,1726125040323,-500.0,0.00016438,2]
[337799728,1726125040334,-500.0,0.00016438,2]
[337799729,1726125040344,-500.0,0.00016438,2]
[337799730,1726125040355,-567.74,0.00016438,2]
[337799731,1726125040365,-500.0,0.00016438,2]
[337799732,1726125040375,-613.82,0.00016438,2]
[337799733,1726125040385,-500.0,0.00016438,2]
[337799734,1726125040395,-500.0,0.00016438,2]
[337799735,1726125040405,-500.0,0.00016438,2]